{"text_format":"1","workbook":"xlsx","n_sheets":5,"sheets":["1.Marée","2.Logbook","3.Tonnage bord","4.Statistiques","5.Définitions"],"not_rendered":{"charts":0,"images":2,"macros":1,"external_links":2,"defined_names":25,"comments":1,"pivot_tables":0},"unopened":[],"bounds":{"document_bytes":16777216,"sheet_cells":100000,"rows_first":2000,"rows_last":500,"rows_between":2000,"halvings":0,"cell_chars":16384,"cell_head_chars":4096},"cells_cut":0,"cells_raw":0,"read":"whole","date_system":"1900"}

{"sheet":"1.Marée","index":0,"n_rows":34,"n_cols":14,"rows_kept":34,"cut":false,"hidden":false,"merged":[[27,12,33,14],[1,5,1,6],[2,5,2,6],[3,5,3,6],[4,5,4,6],[5,5,5,6],[3,13,3,14],[19,5,19,6],[20,5,20,6],[13,5,13,6],[14,5,14,6],[15,5,15,6],[17,5,17,6],[18,5,18,6],[12,5,12,6],[6,5,6,6],[7,5,7,6],[9,3,9,6],[10,3,10,6]]}
[]
[null,"Navire",null,null,":","VIA MISTRAL"]
[null,"Pavillon",null,null,":","Français",null,null,null,null,null,null,null,"en cas de déchargement partiel"]
[null,"Numéro d'immatriculation",null,null,":","CC 790 948 B",null,null,null,null,null,null,null,"merci de noter ci-dessous le ROB (Reste à bord)  "]
[null,"Port d'immatriculation",null,null,":","Concarneau",null,null,null,null,null,null,null,"Albacore +10"]
[null,"Signal d'appel international",null,null,":","228 167 000",null,null,null,null,null,null,null,"Albacore -10"]
[null,"Numéro OMI",null,null,":",9017850,null,null,null,null,null,null,null,"Listao"]
[null,"Numéro CFR",null,null,":","FRA 000790948",null,null,null,null,null,null,null,"Patudo +10"]
[null,null,null,null,null,null,null,null,null,null,null,null,null,"Patudo -10"]
[null,"Patron          :",null,"Le Gal Jean-Christophe",null,null,null,null,null,null,null,null,null,"Germon"]
[null,"Marée          :",null,218]
[]
[null,"Départ       -",null,"Port",":","Abidjan"]
[null,null,null,"Date",":","2020-03-15"]
[null,null,null,"Heure",":","16:00:00"]
[null,null,null,"Loch",":",0]
[]
[null,"Arrivée       -",null,"Port",":","DAKAR"]
[null,null,null,"Date",":","2020-04-26"]
[null,null,null,"Heure",":","19:00:00"]
[null,null,null,"Loch",":",7700]
[]
[null,40,null,"Jours de mer pendant la marée.",null,null,null,{"$f":"F21-F16","v":7700},null,"milles parcourus"]
[]
[null,"Nombre de coups de filets dans la marée ",null,null,null,null,null,"   Portants ",":",{"$f":"SUM('2.Logbook'!I33:I534)","v":37}]
[null,null,null,null,null,null,null,"   Nuls ",":",{"$f":"SUM('2.Logbook'!J33:J534)","v":4}]
[null,null,null,null,null,null,null,"   Total ",":",{"$f":"J25+J26","v":41}]
[null,null,null,null,null,null,null,null,null,null,null,null,"Insérer le tampon et la signature"]
[null,"Albacore",":",{"$f":"SUM('2.Logbook'!M33:M534)+SUM('2.Logbook'!O33:O534)","v":554},null,null,"Autres",{"$f":"SUM('2.Logbook'!Z33:Z534)","v":13}]
[null,"Listao",":",{"$f":"SUM('2.Logbook'!Q33:Q534)","v":160},null,null,"Rejets",{"$f":"SUM('2.Logbook'!AC33:AC534)","v":0}]
[null,"Patudo",":",{"$f":"SUM('2.Logbook'!S33:S534)+SUM('2.Logbook'!U33:U534)","v":25}]
[null,"Germon",":",{"$f":"SUM('2.Logbook'!W33:W534)","v":0}]
[]
[null,"Total",":",{"$f":"SUM(D29:D32)","v":739}]

{"sheet":"2.Logbook","index":1,"n_rows":132,"n_cols":47,"rows_kept":132,"cut":false,"hidden":false,"merged":[[14,41,15,45],[22,26,23,28],[20,44,21,45],[22,44,23,45],[0,0,4,10],[5,0,5,5],[0,46,4,46],[3,29,3,35],[5,29,5,35],[2,22,5,28],[0,22,1,28],[0,11,4,21],[5,11,5,17],[5,18,5,21],[5,6,5,10],[2,29,2,35],[4,29,4,35],[0,29,1,39],[0,40,8,45],[2,36,2,39],[3,36,3,39],[6,22,8,24],[6,25,8,28],[6,29,6,35],[12,41,13,45],[8,29,8,35],[22,23,23,25],[12,46,13,46],[14,46,15,46],[16,46,17,46],[18,46,29,46],[18,44,19,45],[24,39,29,39],[24,40,29,40],[12,36,13,40],[14,36,15,40],[16,36,17,40],[18,41,21,41],[26,41,29,41],[22,41,25,41],[18,39,19,40],[20,39,21,40],[22,39,23,40],[18,37,21,37],[22,37,25,37],[18,26,19,28],[26,45,27,45],[28,45,29,45],[6,0,6,5],[7,0,7,5],[8,0,8,5],[10,0,10,10],[9,0,9,45],[11,0,11,46],[6,6,6,10],[7,6,7,10],[8,6,8,10],[5,46,8,46],[10,11,10,28],[6,11,6,17],[6,18,6,21],[7,11,7,17],[7,18,7,21],[8,11,8,17],[8,18,8,21],[7,29,7,35],[24,43,25,43],[26,43,27,43],[28,43,29,43],[16,41,17,45],[18,42,19,43],[20,42,21,43],[22,42,23,43],[20,11,21,14],[20,15,21,16],[20,17,21,20],[20,21,21,22],[20,23,21,25],[20,26,21,28],[12,0,17,0],[18,0,23,0],[24,0,29,0],[12,1,17,1],[18,1,23,1],[24,1,29,1],[12,2,17,2],[18,2,23,2],[12,11,13,28],[14,11,15,28],[12,8,13,10],[14,8,15,10],[16,8,17,10],[18,8,29,8],[18,9,29,9],[18,10,29,10],[12,5,17,5],[18,5,23,5],[24,5,29,5],[12,6,13,7],[16,11,17,28],[18,11,19,14],[18,15,19,16],[18,17,19,20],[24,2,29,2],[12,3,17,3],[18,3,23,3],[24,3,29,3],[12,4,17,4],[18,4,23,4],[24,4,29,4],[24,11,25,14],[26,21,26,22],[26,11,26,12],[26,13,26,14],[26,15,26,16],[26,17,26,18],[26,19,26,20],[24,17,25,20],[24,21,25,22],[18,21,19,22],[24,15,25,16],[22,11,23,14],[22,15,23,16],[22,17,23,20],[22,21,23,22],[14,6,15,7],[16,6,17,7],[18,6,29,6],[18,7,29,7],[10,29,10,46],[26,23,26,25],[26,26,26,28],[24,23,25,25],[24,26,25,28],[24,42,25,42],[18,34,29,34],[18,35,29,35],[18,36,21,36],[22,36,25,36],[26,36,29,36],[18,23,19,25],[18,38,21,38],[22,38,25,38],[26,38,29,38],[18,31,29,31],[24,44,25,44],[26,44,27,44],[28,44,29,44],[24,45,25,45],[26,42,27,42],[28,42,29,42],[4,36,4,39],[5,36,5,39],[6,36,6,39],[7,36,7,39],[8,36,8,39],[12,29,13,35],[14,29,15,35],[16,29,17,35],[18,29,29,29],[18,32,29,32],[18,33,29,33],[18,30,29,30],[26,37,29,37]]}
["DEPART / SALIDA / DEPARTURE",null,null,null,null,null,null,null,null,null,null,"ARRIVEE / LLEGAGA / ARRIVAL",null,null,null,null,null,null,null,null,null,null,"PATRON / PATRON / MASTER",null,null,null,null,null,null,"NAVIRE / BARCO / VESSEL",null,null,null,null,null,null,null,null,null,null,"Insérez ici le tampon et la signature",null,null,null,null,null,"FEUILLE / HOJA / SHEET"]
[]
[null,null,null,null,null,null,null,null,null,null,null,null,null,null,null,null,null,null,null,null,null,null,{"$f":"Patron","v":"Le Gal Jean-Christophe"},null,null,null,null,null,null,"Vessel",null,null,null,null,null,null,{"$f":"Navire","v":"VIA MISTRAL"}]
[null,null,null,null,null,null,null,null,null,null,null,null,null,null,null,null,null,null,null,null,null,null,null,null,null,null,null,null,null,"Flag",null,null,null,null,null,null,{"$f":"Pavillon","v":"Français"}]
[null,null,null,null,null,null,null,null,null,null,null,null,null,null,null,null,null,null,null,null,null,null,null,null,null,null,null,null,null,"Immatriculation number",null,null,null,null,null,null,{"$f":"Immatriculation","v":"CC 790 948 B"}]
["PORT / PUERTO / PORT",null,null,null,null,null,{"$f":"Port_départ","v":"Abidjan"},null,null,null,null,"PORT / PUERTO / PORT",null,null,null,null,null,null,{"$f":"Port_retour","v":"DAKAR"},null,null,null,null,null,null,null,null,null,null,"Immatriculation port",null,null,null,null,null,null,{"$f":"Port_immatriculation","v":"Concarneau"}]
["DATE / FECHA / DATE",null,null,null,null,null,{"$f":"Date_départ","v":"2020-03-15"},null,null,null,null,"DATE / FECHA / DATE",null,null,null,null,null,null,{"$f":"Date_retour","v":"2020-04-26"},null,null,null,"MAREE",null,null,{"$f":"Marée","v":218},null,null,null,"International call sign",null,null,null,null,null,null,{"$f":"Appel_international","v":"228 167 000"}]
["HEURE / HORA / HOUR",null,null,null,null,null,{"$f":"Heure_départ","v":"16:00:00"},null,null,null,null,"HEURE / HORA / HOUR",null,null,null,null,null,null,{"$f":"Heure_retour","v":"19:00:00"},null,null,null,null,null,null,null,null,null,null,"OMI number",null,null,null,null,null,null,{"$f":"OMI","v":9017850}]
["LOCH / CORREDA / LOCH",null,null,null,null,null,{"$f":"Loch_départ","v":0},null,null,null,null,"LOCH / CORREDA / LOCH",null,null,null,null,null,null,{"$f":"Loch_retour","v":7700},null,null,null,null,null,null,null,null,null,null,"CFR number",null,null,null,null,null,null,{"$f":"CFR","v":"FRA 000790948"}]
[]
[null,null,null,null,null,null,null,null,null,null,null,"Une calée, un objet flottant ou une bouée par ligne"]
[]
["DATE","HEURE","LATITUDE\nchaque calée ou à midi","LONGITUDE\nchaque calée ou à midi","ZEE","T°C \nmer","VENT",null,"CALEE",null,null,"CAPTURE ESTIMEE (en tonnes)",null,null,null,null,null,null,null,null,null,null,null,null,null,null,null,null,null,"ASSOCIATION",null,null,null,null,null,null,"OBJET FLOTTANT",null,null,null,null,"BOUEE INSTRUMENTEE",null,null,null,null,"COMMENTAIRES"]
[]
[null,null,null,null,null,null,"VIENTO",null,"LANCE",null,null,"ESTIMATION DE LA CAPTURA (en toneladas)",null,null,null,null,null,null,null,null,null,null,null,null,null,null,null,null,null,"ASSOCIACION",null,null,null,null,null,null,"OBJETO",null,null,null,null,"BOYA",null,null,null,null,"COMMENTARIOS"]
[]
[null,null,null,null,null,null,"WIND",null,"FISHING SET",null,null,"ESTIMATED CATCH (metric tons)",null,null,null,null,null,null,null,null,null,null,null,null,null,null,null,null,null,"ASSOCIATION",null,null,null,null,null,null,"FLOATING OBJECT",null,null,null,null,"INSTRUMENTED BUOY",null,null,null,null,"COMMENTS"]
[]
["FECHA","HORA","LATITUD\ncada lance o mediada","LONGITUD\ncada lance o mediada","ZEE","T°C \nmar","Direction / Dirreccion / Direction\nDegrés / Grados / Degrees","Vitesse / Velocidad / Speed\nNœuds / Nudos / Knots","Portante / Positivo / Successful","Nulle / Nullo / Nil","Type de calée / Lance typo / Fishing set type",1,null,null,null,2,null,3,null,null,null,4,null,5,null,null,6,null,null,"Banc Libre / Banco Libre / Free School","Objet flottant / Objeto / FOB","Balise / Balisa / Beacon","Baliseur / Barco de appoyo\n Support vessel","Requin baleine / Tiburon ballena \nWhale shark","Baleine / Ballena / Whale","Oiseaux / Aves / Birds","ACTIVITE \nSUR L'OBJET","TYPE D'OBJET","TYPE DE DCP\n DERIVANT","RISQUE DE MAILLAGE",null,"ACTIVITE \nSUR LA BOUEE","BOUEE DÉJÀ PRESENTE",null,"BOUEE DEPLOYEE",null,"Problèmes divers\nDétails sur les prises accessoires\nTaille du banc\nAutres associations\nAutres remarques"]
[]
[null,null,null,null,null,null,null,null,null,null,null,"ALBACORE",null,null,null,"LISTAO",null,"PATUDO",null,null,null,"GERMON",null,"AUTRES ESPECES",null,null,"REJETS",null,null,null,null,null,null,null,null,null,null,null,null,"RIESGO DE ENMALLAMIENTO",null,null,"BOYA ANTIGUA",null,"BOYA NUEVA"]
[]
[null,null,null,null,null,null,null,null,null,null,null,"RABIL",null,null,null,"LISTADO",null,"PATUDO",null,null,null,"ALBACORA",null,"OTRAS ESPECIES",null,null,"DESCARTES",null,null,null,null,null,null,null,null,null,"ACTIVIDAD SOBRE EL OBJETO","TIPO DE OBJETO","TIPO DE DCP","ENTANGLING RISK",null,"ACTIVIDAD SOBRE LA BOYA","BUOY ALREADY ON THE FOB",null,"DEPLOYED BUOY"]
[]
["DATE","TIME","LATITUDE\neach set or at midday","LONGITUDE\neach set or at midday","EEZ","T°C \nsea",null,null,null,null,null,"YELLOWFIN",null,null,null,"SKIPJACK",null,"BIGEYE",null,null,null,"ALBACORE",null,"OTHER SPECIES",null,null,"DISCARDS",null,null,null,null,null,null,null,null,null,null,null,null,"En surface \nParte surperficial\nSurface","Sous la surface\nParte sumergida\nUnderwater",null,"TYPE","NUMERO","TYPE","NUMERO"]
[]
[null,null,null,null,null,null,null,null,null,null,null,"YFT +10",null,"YFT-10",null,"SKJ",null,"BET +10",null,"BET - 10",null,"ALB",null,"OTH",null,null,"DSC",null,null,null,null,null,null,null,null,null,"FOB ACTIVITY","FOB TYPE","DFAD TYPE",null,null,"BUOY \nACTIVITY","TIPO","NUMERO","TIPO","NUMERO"]
[null,null,null,null,null,null,null,null,null,null,null,"Taille","Capture","Taille","Capture","Taille","Capture","Taille","Capture","Taille","Capture","Taille","Capture","Espèce","Taille","Capture","Espèce","Taille","Capture"]
[null,null,null,null,null,null,null,null,null,null,null,"Tailla","Captura","Tailla","Captura","Tailla","Captura","Tailla","Captura","Tailla","Captura","Tailla","Captura","Especie","Tailla","Captura","Especie","Tailla","Captura",null,null,null,null,null,null,null,null,null,null,null,null,null,"TYPE","ID","TYPE","ID"]
[null,null,null,null,null,null,null,null,null,null,null,"Size","Catch","Size","Catch","Size","Catch","Size","Catch","Size","Catch","Size","Catch","Species","Size","Catch","Species","Size","Catch"]
[]
[]
["2020-03-15","16:00:00",null,null,null,null,null,null,null,null,null,null,null,null,null,null,null,null,null,null,null,null,null,null,null,null,null,null,null,null,null,null,null,null,null,null,null,null,null,null,null,null,null,null,null,null,"Départ ABIDJAN"]
["2020-03-16","12:00:00","1°35'N","5°10'W","Eaux internationales",29,180,10]
["2020-03-17","13:50:00","0°50'N","6°46'W","Eaux internationales",29,180,10,1,null,"Banc Objet",null,null,"1,8 - 3,4 kg",1,"1,8 - 3,4 kg",22,null,null,null,null,null,null,null,null,null,null,null,null,null,1,1,null,null,null,null,"Visite avec pêche","DCP dérivant","DCP coréen",null,"Non observable","Transfert",null,null,"M3i+",585229,"largué sur radeau"]
["2020-03-18","10:25:00","0°49'N","6°37'W","Eaux internationales",29,200,10,null,1,"Banc Libre",null,null,null,null,null,null,null,null,null,null,null,null,null,null,null,null,null,null,1,null,null,null,null,null,null,null,null,null,null,null,null,null,null,null,null,"largué sur yf au sonar"]
["2020-03-19","15:50:00","1°14'N","11°56'W","Eaux internationales",29,200,5,null,null,null,null,null,null,null,null,null,null,null,null,null,null,null,null,null,null,null,null,null,null,null,null,null,null,null,null,"Visite sans pêche","DCP dérivant","DCP espagnol émergé bambou",null,null,"Transfert","M3i+",null,"M3i+",585248,"tansfert"]
["2020-03-19","16:45:00","1°02'N","11°52'W","Eaux internationales",29,200,5,null,null,null,null,null,null,null,null,null,null,null,null,null,null,null,null,null,null,null,null,null,null,null,null,null,null,null,null,"Visite sans pêche","DCP dérivant","DCP français émergé métal",null,null,"Transfert","M3i+",null,"M3i+",585781,"tansfert"]
["2020-03-20","12:17:00","2°39'S","14°02'W","Eaux internationales",28.5,100,5,1,null,"Banc Objet",null,null,"1,8 - 3,4 kg",1,"< 1,8 kg",4,null,null,"1,8 - 3,4 kg",2,null,null,null,null,null,null,null,null,null,1,1,null,null,null,null,"Visite avec pêche","DCP dérivant","DCP français émergé bambou",null,null,"Visite","M3i+",581313,"M3i+",581313,"largué sur radeau"]
["2020-03-21","07:30:00","1°55'S","13°38'W","Eaux internationales",28.3,90,5,1,null,"Banc Libre","> 60 kg",22,null,null,null,null,null,null,null,null,null,null,null,null,null,null,null,null,1,null,null,null,null,null,null,null,null,null,null,null,null,null,null,null,null,"largué yf au sonar"]
["2020-03-22","06:45:00","1°55'S","13°40'W","Eaux internationales",28.5,90,5,1,null,"Banc Libre","> 60 kg",8,null,null,null,null,null,null,null,null,null,null,null,null,null,null,null,null,1,null,null,null,null,null,null,null,null,null,null,null,null,null,null,null,null,"largué yf au sonar"]
["2020-03-23","07:30:00","0°49'N","9°07'W","Eaux internationales",29.6,280,20,1,null,"Banc Objet",null,null,"1,8 - 3,4 kg",1,"1,8 - 3,4 kg",8,null,null,null,null,null,null,null,null,null,null,null,null,null,1,0,null,null,null,null,"Visite avec pêche","DCP dérivant","DCP espagnol émergé plastique",null,null,"Visite",null,null,"M3i+",585907,"largué sur radeau"]
["2020-03-23","13:40:00","0°55'N","08°33'W","Eaux internationales",29.6,280,10,null,null,null,null,null,null,null,null,null,null,null,null,null,null,null,null,null,null,null,null,null,null,null,null,null,null,null,null,"Visite sans pêche","DCP dérivant","DCP coréen",null,null,"Transfert",null,null,"M3i+",534949,"transfert"]
["2020-05-24","12:00:00","0°51'N","6°49'W","Eaux internationales",29.6,280,5]
["2020-03-25","14:20:00","1°54'N","5°53'W","Côte d'Ivoire",29.6,280,5,null,null,"Banc Objet",null,null,null,null,null,null,null,null,null,null,null,null,null,null,null,null,null,null,null,null,null,null,null,null,null,"Visite sans pêche","DCP dérivant","DCP coréen",null,null,"Transfert",null,null,"M3i+",567400,"transfert"]
["2020-03-26","06:30:00","2°12'N","6°16'W","Côte d'Ivoire",29.2,180,5,1,null,"Banc Objet",null,null,null,null,"1,8 - 3,4 kg",22,null,null,"3,4 - 10 kg",8,null,null,null,null,null,null,null,null,null,1,1,null,null,null,null,"Visite avec pêche","DCP dérivant","DCP français émergé bambou",null,null,"Visite","M3i+",581450,"M3i+",581450,"largué sur radeau"]
["2020-03-26","09:20:00","2°12'N","6°16'W","Côte d'Ivoire",29.2,180,5,1,null,"Banc Objet",null,null,null,null,"1,8 - 3,4 kg",17,null,null,"3,4 - 10 kg",5,null,null,"frz",1.8,3,null,null,null,null,1,1,null,null,null,null,"Visite avec pêche","DCP dérivant","DCP français émergé bambou",null,null,"Visite","M3i+",581450,"M3i+",581450,"largué sur radeau"]
["2020-03-26","13:10:00","2°22'N","5°56'W","Côte d'Ivoire",29.4,180,5,1,null,"Banc Objet",null,null,null,null,"1,8 - 3,4 kg",1,null,null,null,null,null,null,null,null,null,null,null,null,null,1,1,null,null,null,null,"Visite avec pêche","DCP dérivant","DCP espagnol émergé métal",null,null,"Visite","M3i+",null,"M3i+",579701,"largué sur radeau"]
["2020-03-27","06:10:00","2°36'N","5°20'W","Côte d'Ivoire",29.4,180,5,1,null,"Banc Objet",null,null,null,null,"1,8 - 3,4 kg",4,null,null,null,null,null,null,null,null,null,null,null,null,null,1,1,null,null,null,null,"Visite avec pêche","DCP dérivant","DCP espagnol émergé métal",null,null,"Visite","M3i+",585062,"M3i+",585062,"largué sur radeau"]
["2020-03-27","09:00:00","2°35'N","5°17'W","Côte d'Ivoire",29.5,180,5,1,null,"Banc Objet",null,null,"1,8 - 3,4 kg",2,"1,8 - 3,4 kg",18,null,null,null,null,null,null,null,null,null,null,null,null,null,1,1,null,null,null,null,"Visite avec pêche","DCP dérivant","DCP espagnol émergé métal",null,null,"Visite","M3i+",585062,"M3i+",585062,"largué sur radeau"]
["2020-03-27","12:50:00","02°19'N","005°26'w","Côte d'Ivoire",29,180,5,null,null,null,null,null,null,null,null,null,null,null,null,null,null,null,null,null,null,null,null,null,null,null,null,null,null,null,null,null,"DCP dérivant","DCP coréen",null,null,"Transfert",null,null,"M3i+",579780,"transfert"]
["2020-03-28","13:00:00","2°13'N","5°59'W","Côte d'Ivoire",29.6,180,5,1,null,"Banc Objet",null,null,null,null,"1,8 - 3,4 kg",6,null,null,"1,8 - 3,4 kg",1,null,null,null,null,null,null,null,null,null,1,1,null,null,null,null,"Visite avec pêche","DCP dérivant","DCP coréen",null,null,"Visite",null,null,"M3i+",585823,"largué sur radeau"]
["2020-03-28","16:30:00","2°14'N","6°05'W","Côte d'Ivoire",29.7,180,10,null,null,null,null,null,null,null,null,null,null,null,null,null,null,null,null,null,null,null,null,null,null,null,null,null,null,null,null,null,"DCP dérivant","DCP coréen",null,null,"Transfert",null,null,"M3i+",585876,"transfert"]
["2020-03-29","12:00:00","2°07'N","7°13'w","Côte d'Ivoire",30.1,160,6]
["2020-03-30","10:15:00","4°39'N","11°35'W","Libéria",29.9,160,5,null,null,null,null,null,null,null,null,null,null,null,null,null,null,null,null,null,null,null,null,null,null,null,null,null,null,null,null,null,"DCP dérivant","DCP espagnol émergé métal",null,null,"Transfert",null,null,"M3i+",587460,"transfert"]
["2020-03-30","13:30:00","05°06'N","12°09'W","Libéria",29.9,160,5,null,null,null,null,null,null,null,null,null,null,null,null,null,null,null,null,null,null,null,null,null,null,null,null,null,null,null,null,null,"DCP dérivant","DCP espagnol émergé métal",null,null,"Transfert",null,null,"M3i+",587461,"transfert"]
["2020-03-30","13:40:00","5°15'N","12°19'W","Libéria",30.1,160,5,null,null,null,null,null,null,null,null,null,null,null,null,null,null,null,null,null,null,null,null,null,null,null,null,null,null,null,null,null,"DCP dérivant","DCP espagnol émergé métal",null,null,"Transfert",null,null,"M3i+",587475,"transfert"]
["2020-03-30","14:00:00","5°15'N","12°22'W","Libéria",30,160,5,null,null,null,null,null,null,null,null,null,null,null,null,null,null,null,null,null,null,null,null,null,null,null,null,null,null,null,null,null,"DCP dérivant","DCP espagnol émergé métal",null,null,"Transfert",null,null,"M3i+",587476,"transfert"]
["2020-03-31","06:30:00","7°39'N","14°17'W","Sierra Leone",27.8,300,5,null,null,null,null,null,null,null,null,null,null,null,null,null,null,null,null,null,null,null,null,null,null,null,null,null,null,null,null,null,"DCP dérivant","DCP français émergé bambou",null,null,"Mise à l'eau",null,null,"M3i+",587484,"mouillé radeau"]
["2020-03-31","06:50:00","7°42'N","14°16'W","Sierra Leone",27.8,300,5,null,null,null,null,null,null,null,null,null,null,null,null,null,null,null,null,null,null,null,null,null,null,null,null,null,null,null,null,null,"DCP dérivant","DCP espagnol émergé métal",null,null,"Transfert",null,null,"M3i+",587499,"transfert"]
["2020-03-31","09:50:00","8°09'N","14°35'W","Sierra Leone",27.6,300,5,1,null,"Banc Objet","> 60 kg",1,"1,8 - 3,4 kg",17,null,null,null,null,"1,8 - 3,4 kg",3,null,null,"frz",1.8,5,null,null,null,null,1,1,null,null,null,null,"Visite avec pêche","DCP dérivant","DCP espagnol émergé métal",null,null,"Visite",null,null,null,null,"largué radeau"]
["2020-03-31","13:45:00","8°17'N","14°41'W","Sierra Leone",27.5,300,5,null,null,null,null,null,null,null,null,null,null,null,null,null,null,null,null,null,null,null,null,null,null,null,null,null,null,null,null,null,"DCP dérivant","DCP coréen",null,null,"Transfert",null,null,"M3i+",587550,"transfert"]
["2020-03-31","15:30:00","8°33'N","14°51'W","Guinée Conakry",27.1,300,5,null,null,null,null,null,null,null,null,null,null,null,null,null,null,null,null,null,null,null,null,null,null,null,null,null,null,null,null,null,"DCP dérivant","DCP coréen",null,null,"Transfert",null,null,"M3i+",587583,"transfert"]
["2020-03-31","16:00:00","8°37'N","14°54'W","Guinée Conakry",26.5,300,5,null,null,null,null,null,null,null,null,null,null,null,null,null,null,null,null,null,null,null,null,null,null,null,null,null,null,null,null,null,"DCP dérivant","DCP français émergé bambou",null,null,"Transfert",null,null,"M3i+",587596,"transfert"]
["2020-03-31","16:15:00","8°38'N","14°55'W","Guinée Conakry",26.5,300,5,null,null,null,null,null,null,null,null,null,null,null,null,null,null,null,null,null,null,null,null,null,null,null,null,null,null,null,null,null,"DCP dérivant","DCP coréen",null,null,"Transfert",null,null,"M3i+",580210,"transfert"]
["2020-03-31","18:20:00","8°47'N","15°18'W","Guinée Conakry",26.5,300,5,null,null,null,null,null,null,null,null,null,null,null,null,null,null,null,null,null,null,null,null,null,null,null,null,null,null,null,null,null,"DCP dérivant","DCP espagnol émergé métal",null,null,"Transfert",null,null,"M3i+",580212,"transfert"]
["2020-04-01","06:15:00","8°47'N","15°15'W","Guinée Conakry",25.7,260,5,null,null,null,null,null,null,null,null,null,null,null,null,null,null,null,null,null,null,null,null,null,null,null,null,null,null,null,null,"Mise à l'eau","DCP dérivant","DCP français émergé bambou",null,null,"Mise à l'eau",null,null,"M3i+",587504,"mouillé radeau"]
["2020-04-01","07:10:00","8°46'N","15°26'W","Guinée Conakry",26,260,5,null,null,null,null,null,null,null,null,null,null,null,null,null,null,null,null,null,null,null,null,null,null,null,null,null,null,null,null,"Mise à l'eau","DCP dérivant","DCP français émergé bambou",null,null,"Mise à l'eau",null,null,"M3i+",580224,"mouillé radeau"]
["2020-04-01","08:00:00","8°42'N","15°35'W","Guinée Conakry",26.6,260,5,null,null,null,null,null,null,null,null,null,null,null,null,null,null,null,null,null,null,null,null,null,null,null,null,null,null,null,null,"Mise à l'eau","DCP dérivant","DCP français émergé bambou",null,null,"Mise à l'eau",null,null,"M3i+",580228,"mouillé radeau"]
["2020-04-01","08:40:00","8°40'N","15°41'W","Guinée Conakry",27,260,5,null,null,null,null,null,null,null,null,null,null,null,null,null,null,null,null,null,null,null,null,null,null,null,null,null,null,null,null,"Mise à l'eau","DCP dérivant","DCP français émergé bambou",null,null,"Mise à l'eau",null,null,"M3i+",580247,"mouillé radeau"]
["2020-04-01","09:15:00","8°38'N","15°47'W","Guinée Conakry",27.1,260,5,null,null,null,null,null,null,null,null,null,null,null,null,null,null,null,null,null,null,null,null,null,null,null,null,null,null,null,null,"Mise à l'eau","DCP dérivant","DCP français émergé bambou",null,null,"Mise à l'eau",null,null,"M3i+",580249,"mouillé radeau"]
["2020-04-01","09:45:00","8°37'N","15°51'W","Guinée Conakry",27.1,260,5,null,null,null,null,null,null,null,null,null,null,null,null,null,null,null,null,null,null,null,null,null,null,null,null,null,null,null,null,"Mise à l'eau","DCP dérivant","DCP français émergé bambou",null,null,"Mise à l'eau",null,null,"M3i+",580253,"mouillé radeau"]
["2020-04-01","10:15:00","8°34'N","15°58'W","Guinée Conakry",27.1,260,5,null,null,null,null,null,null,null,null,null,null,null,null,null,null,null,null,null,null,null,null,null,null,null,null,null,null,null,null,"Mise à l'eau","DCP dérivant","DCP français émergé bambou",null,null,"Mise à l'eau",null,null,"M3i+",580282,"mouillé radeau"]
["2020-04-01","10:45:00","8°35'N","16°03'W","Guinée Conakry",28.1,260,5,null,null,null,null,null,null,null,null,null,null,null,null,null,null,null,null,null,null,null,null,null,null,null,null,null,null,null,null,"Mise à l'eau","DCP dérivant","DCP français émergé bambou",null,null,"Mise à l'eau",null,null,"M3i+",580283,"mouillé radeau"]
["2020-04-01","11:20:00","8°35'N","16°06'W","Guinée Conakry",28.3,260,5,null,null,null,null,null,null,null,null,null,null,null,null,null,null,null,null,null,null,null,null,null,null,null,null,null,null,null,null,"Mise à l'eau","DCP dérivant","DCP français émergé bambou",null,null,"Mise à l'eau",null,null,"M3i+",580286,"mouillé radeau"]
["2020-04-01","12:45:00","8°28'N","16°24'W","Guinée Conakry",28.6,260,5,null,null,null,null,null,null,null,null,null,null,null,null,null,null,null,null,null,null,null,null,null,null,null,null,null,null,null,null,null,"DCP dérivant","DCP espagnol émergé métal",null,null,"Transfert",null,null,"M3i+",587574,"transfert"]
["2020-04-01","15:30:00","08°21'N","16°45'W","Guinée Conakry",28.6,260,5,null,null,null,null,null,null,null,null,null,null,null,null,null,null,null,null,null,null,null,null,null,null,null,null,null,null,null,null,null,"DCP dérivant","DCP espagnol émergé métal",null,null,"Transfert",null,null,"M3i+",587723,"transfert"]
["2020-04-01","16:45:00","8°09'N","17°09'W","Guinée Conakry",28.8,260,5,null,null,null,null,null,null,null,null,null,null,null,null,null,null,null,null,null,null,null,null,null,null,null,null,null,null,null,null,null,"DCP dérivant","DCP espagnol émergé métal",null,null,"Transfert",null,null,"M3i+",587730,"transfert"]
["2020-04-02","07:15:00","7°27'N","18°52'W","Eaux internationales",28.6,260,5,1,null,"Banc Libre","> 60 kg",5,null,null,null,null,null,null,null,null,null,null,null,null,null,null,null,null,1,null,null,null,null,null,null,null,null,null,null,null,null,null,null,null,null,"largué yf au sonar"]
["2020-04-02","10:25:00","7°27'N","18°55'W","Eaux internationales",28.7,260,5,1,null,"Banc Libre","> 60 kg",13,null,null,null,null,null,null,null,null,null,null,null,null,null,null,null,null,1,null,null,null,null,null,null,null,null,null,null,null,null,null,null,null,null,"largué yf au sonar"]
["2020-04-03","07:00:00","7°02'N","19°34'W","Eaux internationales",28.8,260,5,null,1,"Banc Libre",null,null,null,null,null,null,null,null,null,null,null,null,null,null,null,null,null,null,1,null,null,null,null,null,null,null,null,null,null,null,null,null,null,null,null,"largué yf au sonar"]
["2020-04-03","09:15:00","7°03'N","19°34'W","Eaux internationales",28.8,260,5,null,1,"Banc Libre",null,null,null,null,null,null,null,null,null,null,null,null,null,null,null,null,null,null,1,null,null,null,null,null,null,null,null,null,null,null,null,null,null,null,null,"largué yf au sonar"]
["2020-04-03","15:10:00","7°07'N","19°37'W","Eaux internationales",28.8,260,5,1,null,"Banc Libre","> 60 kg",23,null,null,null,null,null,null,null,null,null,null,null,null,null,null,null,null,1,null,null,null,null,null,null,null,null,null,null,null,null,null,null,null,null,"largué yf au sonar"]
["2020-04-04","09:20:00","07°19'N","019°32'W","Eaux internationales",28.8,260,5,null,null,null,null,null,null,null,null,null,null,null,null,null,null,null,null,null,null,null,null,null,null,null,null,null,null,null,null,null,"DCP dérivant","DCP espagnol émergé métal",null,null,"Transfert",null,null,"M3i+",587745,"transfert"]
["2020-04-04","10:35:00","7°25'N","19°42'W","Eaux internationales",28.1,260,5,null,1,"Banc Libre",null,null,null,null,null,null,null,null,null,null,null,null,null,null,null,null,null,null,1,null,null,null,null,null,null,null,null,null,null,null,null,null,null,null,null,"largué yf au sonar"]
["2020-04-04","18:25:00","7°27'N","19°27'W","Eaux internationales",28.1,260,5,1,null,"Banc Libre","> 60 kg",23,null,null,null,null,null,null,null,null,null,null,null,null,null,null,null,null,1,null,null,null,null,null,null,null,null,null,null,null,null,null,null,null,null,"largué yf au sonar"]
["2020-04-05","17:00:00","7°37'N","18°58'W","Eaux internationales",28,260,10,1,null,"Banc Libre","> 60 kg",19,null,null,null,null,null,null,null,null,null,null,null,null,null,null,null,null,1,null,null,null,null,null,null,null,null,null,null,null,null,null,null,null,null,"largué yf au sonar"]
["2020-04-06","07:20:00","7°35'N","18°56'W","Eaux internationales",27.8,350,10,1,null,"Banc Libre","> 60 kg",12,null,null,null,null,null,null,null,null,null,null,null,null,null,null,null,null,1,null,null,null,null,null,null,null,null,null,null,null,null,null,null,null,null,"largué yf au sonar"]
["2020-04-07","09:30:00","9°40'N","18°52'W","Guinée Bissau",27,330,10,null,null,null,null,null,null,null,null,null,null,null,null,null,null,null,null,null,null,null,null,null,null,null,null,null,null,null,null,"Mise à l'eau","DCP dérivant","DCP français émergé bambou",null,null,"Mise à l'eau",null,null,"M3i+",587774,"mouillé radeau"]
["2020-04-07","10:20:00","9°45'N","18°42'W","Guinée Bissau",27,330,10,null,null,null,null,null,null,null,null,null,null,null,null,null,null,null,null,null,null,null,null,null,null,null,null,null,null,null,null,null,"DCP dérivant","DCP espagnol émergé métal",null,null,"Transfert",null,null,"M3i+",587776,"transfert"]
["2020-04-07","11:15:00","9°47'N","18°32'W","Guinée Bissau",27.5,330,5,null,null,null,null,null,null,null,null,null,null,null,null,null,null,null,null,null,null,null,null,null,null,null,null,null,null,null,null,"Mise à l'eau","DCP dérivant","DCP français émergé bambou",null,null,"Mise à l'eau",null,null,"M3i+",580180,"mouillé radeau"]
["2020-04-07","12:15:00","9°45'N","18°20'W","Guinée Bissau",26.9,330,5,null,null,null,null,null,null,null,null,null,null,null,null,null,null,null,null,null,null,null,null,null,null,null,null,null,null,null,null,"Mise à l'eau","DCP dérivant","DCP français émergé bambou",null,null,"Mise à l'eau",null,null,"M3i+",580242,"mouillé radeau"]
["2020-04-07","13:10:00","9°41'N","18°10'W","Guinée Bissau",25.7,330,5,null,null,null,null,null,null,null,null,null,null,null,null,null,null,null,null,null,null,null,null,null,null,null,null,null,null,null,null,"Mise à l'eau","DCP dérivant","DCP français émergé bambou",null,null,"Mise à l'eau",null,null,"M3i+",585076,"mouillé radeau"]
["2020-04-07","14:00:00","9°34'N","17)59'W","Guinée Bissau",25.9,330,5,null,null,null,null,null,null,null,null,null,null,null,null,null,null,null,null,null,null,null,null,null,null,null,null,null,null,null,null,"Mise à l'eau","DCP dérivant","DCP français émergé bambou",null,null,"Mise à l'eau",null,null,"M3i+",585819,"mouillé radeau"]
["2020-04-07","14:55:00","9°29'N","17°50'W","Guinée Bissau",27.9,330,5,null,null,null,null,null,null,null,null,null,null,null,null,null,null,null,null,null,null,null,null,null,null,null,null,null,null,null,null,"Mise à l'eau","DCP dérivant","DCP français émergé bambou",null,null,"Mise à l'eau",null,null,"M3i+",585938,"mouillé radeau"]
["2020-04-08","12:00:00","7°00'N","20°54'W","Eaux internationales",28.7,350,5]
["2020-04-09","09:00:00","6°30'N","21°50'W","Eaux internationales",28.3,350,5,1,null,"Banc Libre","> 60 kg",5,null,null,null,null,null,null,null,null,null,null,null,null,null,null,null,null,1,null,null,null,null,null,null,null,null,null,null,null,null,null,null,null,null,"largué yf au sonar"]
["2020-04-09","16:45:00","6°49'N","21°26'W","Eaux internationales",28.5,350,5,null,null,null,null,null,null,null,null,null,null,null,null,null,null,null,null,null,null,null,null,null,null,null,null,null,null,null,null,null,"DCP dérivant","DCP espagnol émergé métal",null,null,"Transfert",null,null,"M3i+",585943,"transfert"]
["2020-04-10","08:00:00","7°04'N","21°03'W","Eaux internationales",27.9,270,5,null,null,null,null,null,null,null,null,null,null,null,null,null,null,null,null,null,null,null,null,null,null,null,null,null,null,null,null,null,"DCP dérivant","DCP espagnol émergé métal",null,null,"Transfert",null,null,"M3i+",585977,"transfert"]
["2020-04-10","08:50:00","7°11'N","21°05'W","Eaux internationales",27.8,270,5,null,null,null,null,null,null,null,null,null,null,null,null,null,null,null,null,null,null,null,null,null,null,null,null,null,null,null,null,null,"DCP dérivant","DCP espagnol émergé métal",null,null,"Transfert",null,null,"M3i+",585990,"transfert"]
["2020-04-10","18:30:00","9°03'N","21°15'W","Eaux internationales",26.6,270,15,1,null,"Banc Libre","> 60 kg",10,null,null,null,null,null,null,null,null,null,null,null,null,null,null,null,null,1,null,null,null,null,null,null,null,null,null,null,null,null,null,null,null,null,"largué yf au sonar"]
["2020-04-11","07:30:00","10°11'N","20°45'W","Eaux internationales",26.3,270,5,null,null,null,null,null,null,null,null,null,null,null,null,null,null,null,null,null,null,null,null,null,null,null,null,null,null,null,null,null,"DCP dérivant","DCP espagnol émergé métal",null,null,"Transfert",null,null,"M3i+",586035,"transfert"]
["2020-04-11","08:30:00","10°12'N","20°48'W","Eaux internationales",26.9,270,5,1,null,"Banc Libre","> 60 kg",38,null,null,null,null,null,null,null,null,null,null,null,null,null,null,null,null,1,null,null,null,null,null,null,null,null,null,null,null,null,null,null,null,null,"largué yf au sonar"]
["2020-04-11","11:00:00","10°14'N","20°49'W","Eaux internationales",26.7,270,5,null,null,null,null,null,null,null,null,null,null,null,null,null,null,null,null,null,null,null,null,null,null,null,null,null,null,null,null,"Mise à l'eau","DCP dérivant","DCP français émergé bambou",null,null,"Mise à l'eau",null,null,"M3i+",586096,"mouillé radeau"]
["2020-04-12","10:00:00","10°21'N","20°46'W","Eaux internationales",27.4,270,5,1,null,"Banc Objet","> 60 kg",1,"< 1,8 kg",8,"< 1,8 kg",16,null,null,"< 1,8 kg",2,null,null,null,null,null,null,null,null,null,1,1,null,null,null,null,"Visite avec pêche","DCP dérivant","DCP espagnol émergé métal",null,null,"Visite",null,null,"M3i+",586035,"largué radeau"]
["2020-04-12","19:00:00","10°39'N","20°32'W","Eaux internationales",27.4,270,5,null,null,null,null,null,null,null,null,null,null,null,null,null,null,null,null,null,null,null,null,null,null,null,null,null,null,null,null,null,"DCP dérivant","DCP espagnol émergé métal",null,null,"Transfert",null,null,"M3i+",586097,"transfert"]
["2020-04-13","07:20:00","9°52'N","19°50'W","Eaux internationales",27.5,270,5,1,null,"Banc Libre","> 60 kg",3,null,null,null,null,null,null,null,null,null,null,null,null,null,null,null,null,1,null,null,null,null,null,null,null,null,null,null,null,null,null,null,null,null,"largué yf au sonar"]
["2020-04-13","12:00:00","10°06'N","20°03'W","Eaux internationales",27.8,270,5,null,null,null,null,null,null,null,null,null,null,null,null,null,null,null,null,null,null,null,null,null,null,null,null,null,null,null,null,null,"DCP dérivant","DCP espagnol émergé métal",null,null,"Transfert",null,null,"M3i+",586114,"transfert"]
["2020-04-13","16:10:00","10°45'N","20°36'W","Eaux internationales",27.4,270,5,1,null,"Banc Objet",null,null,null,null,"< 1,8 kg",8,null,null,null,null,null,null,null,null,null,null,null,null,null,1,1,null,null,null,null,"Visite avec pêche","DCP dérivant","DCP espagnol émergé métal",null,null,"Visite",null,null,"M3i+",586097,"largué radeau"]
["2020-04-14","08:50:00","9°54'N","21°10'W","Eaux internationales",26.5,270,15,1,null,"Banc Objet",null,null,"1,8 - 3,4 kg",4,"< 1,8 kg",14,null,null,"1,8 - 3,4 kg",1,null,null,"frz",1.8,1,null,null,null,null,1,1,null,null,null,null,"Visite avec pêche","DCP dérivant","DCP espagnol émergé plastique",null,null,"Transfert",null,null,"M3i+",587438,"largué radeau"]
["2020-04-14","12:50:00","9°52'N","21°23'W","Eaux internationales",26.7,270,10,null,null,null,null,null,null,null,null,null,null,null,null,null,null,null,null,null,null,null,null,null,null,null,null,null,null,null,null,null,"DCP dérivant","DCP espagnol émergé métal",null,null,"Transfert",null,null,"M3i+",587505,"transfert"]
["2020-04-14","16:20:00","10°13'N","21°05'W","Eaux internationales",26.8,270,15,null,null,null,null,null,null,null,null,null,null,null,null,null,null,null,null,null,null,null,null,null,null,null,null,null,null,null,null,"Mise à l'eau","DCP dérivant","DCP français émergé bambou",null,null,"Mise à l'eau",null,null,"M3i+",587563,"mouillé radeau"]
["2020-04-14","18:00:00","10°19'N","21°15'W","Eaux internationales",26.5,270,15,null,null,null,null,null,null,null,null,null,null,null,null,null,null,null,null,null,null,null,null,null,null,null,null,null,null,null,null,null,"DCP dérivant","DCP espagnol émergé métal",null,null,"Transfert",null,null,"M3i+",587566,"transfert"]
["2020-04-15","08:00:00","10°20'N","21°42'W","Eaux internationales",26.5,270,15,1,null,"Banc Libre","> 60 kg",6,null,null,null,null,null,null,null,null,null,null,null,null,null,null,null,null,1,null,null,null,null,null,null,null,null,null,null,null,null,null,null,null,null,"largué yf à vue"]
["2020-04-15","13:15:00","10°11'N","21°58'W","Eaux internationales",26.5,270,15,null,null,null,null,null,null,null,null,null,null,null,null,null,null,null,null,null,null,null,null,null,null,null,null,null,null,null,null,null,"DCP dérivant","DCP coréen",null,null,"Transfert",null,null,"M3i+",585899,"transfert"]
["2020-04-15","14:00:00","9°55'N","22°09'W","Eaux internationales",26.6,270,15,1,null,"Banc Objet","> 60 kg",1,"1,8 - 3,4 kg",5,"< 1,8 kg",14,null,null,"1,8 - 3,4 kg",2,null,null,"frz",1.8,4,null,null,null,null,1,0,null,null,null,null,"Visite avec pêche","DCP dérivant","DCP espagnol émergé métal",null,null,"Visite",null,null,"M3i+",585819,"largué radeau"]
["2020-04-16","07:30:00","9°48'N","22°10'W","Eaux internationales",26.3,270,15,1,null,"Banc Libre","> 60 kg",48,null,null,null,null,null,null,null,null,null,null,null,null,null,null,null,null,1,null,null,null,null,null,null,null,null,null,null,null,null,null,null,null,null,"largué yf au sonar"]
["2020-04-17","08:00:00","9°58'N","22°08'W","Eaux internationales",26.2,10,15,1,null,"Banc Libre","> 60 kg",10,null,null,null,null,null,null,null,null,null,null,null,null,null,null,null,null,1,null,null,null,null,null,null,null,null,null,null,null,null,null,null,null,null,"largué yf au sonar"]
["2020-04-18","14:20:00","10°00'N","21°18'W","Eaux internationales",26.1,10,25,null,null,null,null,null,null,null,null,null,null,null,null,null,null,null,null,null,null,null,null,null,null,null,null,null,null,null,null,null,"DCP dérivant","DCP espagnol émergé métal",null,null,"Transfert",null,null,"M3i+",585923,"transfert"]
["2020-04-19","11:20:00","9°59'N","19°39'W","Eaux internationales",26.6,10,20,1,null,"Banc Libre","> 60 kg",8,null,null,null,null,null,null,null,null,null,null,null,null,null,null,null,null,1,null,null,null,null,null,null,null,null,null,null,null,null,null,null,null,null,"largué yf au sonar"]
["2020-04-20","13:45:00","9°17'N","17°06'W","Guinée Conakry",27.1,10,10,1,null,"Banc Libre","> 60 kg",3,null,null,null,null,null,null,null,null,null,null,null,null,null,null,null,null,1,null,null,null,null,null,null,null,null,null,null,null,null,null,null,null,null,"largué yf à vue"]
["2020-04-21","07:05:00","9°23'N","16°55'W","Guinée Conakry",27.2,350,10,null,null,null,null,null,null,null,null,null,null,null,null,null,null,null,null,null,null,null,null,null,null,null,null,null,null,null,null,null,"DCP dérivant","DCP espagnol émergé métal",null,null,"Transfert",null,null,"M3i+",586022,"transfert"]
["2020-04-21","10:30:00","9°23'N","16°54'W","Guinée Conakry",27.3,350,10,1,null,"Banc Objet",null,null,"1,8 - 3,4 kg",4,"< 1,8 kg",6,null,null,"1,8 - 3,4 kg",1,null,null,null,null,null,null,null,null,null,1,1,null,null,null,null,"Visite avec pêche","DCP dérivant","DCP espagnol émergé métal",null,null,"Visite",null,null,"M3i+",586022,"largué radeau"]
["2020-04-22","12:30:00","9°53'N","21°29'W","Eaux internationales",26.1,0,10,null,null,null,null,null,null,null,null,null,null,null,null,null,null,null,null,null,null,null,null,null,null,null,null,null,null,null,null,null,"DCP dérivant","DCP espagnol émergé métal",null,null,"Transfert",null,null,"M3i+",587628,"transfert"]
["2020-04-22","15:00:00","9°50'N","21°46'W","Eaux internationales",26.1,10,10,1,null,"Banc Libre","> 60 kg",141,null,null,null,null,null,null,null,null,null,null,null,null,null,null,null,null,1,null,null,null,null,null,null,null,null,null,null,null,null,null,null,null,null,"largué yf au sonar "]
["2020-04-23","07:05:00","9°52'N","21°44'W","Eaux internationales",25.8,10,10,1,null,"Banc Libre","> 60 kg",62,null,null,null,null,null,null,null,null,null,null,null,null,null,null,null,null,1,null,null,null,null,null,null,null,null,null,null,null,null,null,null,null,null,"largué yf au sonar"]
["2020-04-23","11:15:00","9°54'N","21°44'W","Eaux internationales",25.9,10,10,1,null,"Banc Libre","> 60 kg",24,null,null,null,null,null,null,null,null,null,null,null,null,null,null,null,null,1,null,null,null,null,null,null,null,null,null,null,null,null,null,null,null,null,"largué yf au sonar"]
["2020-04-23","17:45:00","9°46'N","21°41'W","Eaux internationales",26,10,10,null,null,null,null,null,null,null,null,null,null,null,null,null,null,null,null,null,null,null,null,null,null,null,null,null,null,null,null,null,"DCP dérivant","DCP espagnol émergé métal",null,null,"Transfert",null,null,"M3i+",587682,"transfert"]
["2020-04-24","07:25:00","9°23'N","21°22'W","Eaux internationales",26.1,0,10,1,null,"Banc Libre","> 60 kg",18,null,null,null,null,null,null,null,null,null,null,null,null,null,null,null,null,1,null,null,null,null,null,null,null,null,null,null,null,null,null,null,null,null,"largué yf au sonar"]
["2020-04-24","10:10:00","9°24'N","21°25'W","Eaux internationales",26.1,1,10,1,null,"Banc Libre","> 60 kg",7,null,null,null,null,null,null,null,null,null,null,null,null,null,null,null,null,1,null,null,null,null,null,null,null,null,null,null,null,null,null,null,null,null,"largué yf au sonar"]
["2020-04-25","16:50:00","11°39'N","19°04'W","Sénégal",23.2,20,15,null,null,null,null,null,null,null,null,null,null,null,null,null,null,null,null,null,null,null,null,null,null,null,null,null,null,null,null,null,"Epave artificielle liée à la pêche",null,null,null,"Mise à l'eau",null,null,"M3i+",587687,"mouillé bouée"]
["2020-04-26","09:30:00",null,null,null,null,null,null,null,null,null,null,null,null,null,null,null,null,null,null,null,null,null,null,null,null,null,null,null,null,null,null,null,null,null,null,null,null,null,null,null,null,null,null,null,null,"DAKAR"]

{"sheet":"3.Tonnage bord","index":2,"n_rows":15,"n_cols":5,"rows_kept":15,"cut":false,"hidden":false,"merged":[[12,1,12,4],[13,1,13,4]]}
[]
[null,"Information pêche"]
[null,{"$f":"Navire","v":"VIA MISTRAL"},null,"Tonnage le :",{"$f":"TODAY()","v":"2020-05-13"}]
[null,"Albacore +10",":",{"$f":"SUM('2.Logbook'!$M$33:$M$534)+'1.Marée'!$O$5","v":511}]
[null,"Albacore -10",null,{"$f":"SUM('2.Logbook'!$O$33:$O$534)+'1.Marée'!$O$6","v":43}]
[null,"Listao",":",{"$f":"SUM('2.Logbook'!$Q$33:$Q$534)+'1.Marée'!$O$7","v":160}]
[null,"Patudo -10",":",{"$f":"SUM('2.Logbook'!$S$33:$S$534)+'1.Marée'!$O$8","v":0}]
[null,"Patudo +10",null,{"$f":"SUM('2.Logbook'!$U$33:$U$534)+'1.Marée'!$O$9","v":25}]
[null,"Germon",":",{"$f":"SUM('2.Logbook'!$W$33:$W$534)+'1.Marée'!$O$10","v":0}]
[]
[null,"Total",":",{"$f":"SUM(D4:D9)","v":739}]
[]
[null,"1- ouvrir un nouveau mail dans votre messagerie"]
[null,"2- coller dans le corps du texte"]
[null,"3- envoyer votre email à l'armement"]

{"sheet":"4.Statistiques","index":3,"n_rows":42,"n_cols":4,"rows_kept":42,"cut":false,"hidden":false,"merged":[[1,1,1,3],[2,1,2,3]]}
[]
[null,{"$f":"Navire","v":"VIA MISTRAL"}]
[null,"Statistiques  Captures"]
[null,"N° Marée",{"$f":"Marée","v":218}]
[null,"Du :",{"$f":"Date_départ","v":"2020-03-15"}]
[null,"Au :",{"$f":"Date_retour","v":"2020-04-26"}]
[]
[null,null,"Sur banc libre (en t)"]
[null,"YF+10",{"$f":"SUMIFS('2.Logbook'!$M$33:$M$534,'2.Logbook'!$K$33:$K$534,\"Banc Libre\")","v":508},{"$f":"IF($C$36=0,\"\",C9/$C$36)","v":11.813953488372093}]
[null,"YF-10",{"$f":"SUMIFS('2.Logbook'!$O$33:$O$534,'2.Logbook'!$K$33:$K$534,\"Banc Libre\")","v":0},{"$f":"IF(C37=0,\"\",C10/C37)","v":0}]
[null,"SKJ",{"$f":"SUMIFS('2.Logbook'!$Q$33:$Q$534,'2.Logbook'!$K$33:$K$534,\"Banc Libre\")","v":0},{"$f":"IF(C38=0,\"\",C11/C38)","v":0}]
[null,"BE+10",{"$f":"SUMIFS('2.Logbook'!$S$33:$S$534,'2.Logbook'!$K$33:$K$534,\"Banc Libre\")","v":0},{"$f":"IF(C39=0,\"\",C12/C39)","v":""}]
[null,"BE-10",{"$f":"SUMIFS('2.Logbook'!$U$33:$U$534,'2.Logbook'!$K$33:$K$534,\"Banc Libre\")","v":0},{"$f":"IF(C40=0,\"\",C13/C40)","v":0}]
[null,"Germon",{"$f":"SUMIFS('2.Logbook'!$W$33:$W$534,'2.Logbook'!$K$33:$K$534,\"Banc Libre\")","v":0},{"$f":"IF(C41=0,\"\",C14/C41)","v":""}]
[]
[]
[null,null,"Sur DCP (en t)"]
[null,"YF+10",{"$f":"SUMIFS('2.Logbook'!$M$33:$M$534,'2.Logbook'!$K$33:$K$534,\"Banc Objet\",'2.Logbook'!$AL$33:$AL$534,{\"DCP dérivant\";\"DCP ancré\"}  )","v":3},{"$f":"IF($C$36=0,\"\",C18/$C$36)","v":6.9767441860465115E-2}]
[null,"YF-10",{"$f":"SUMIFS('2.Logbook'!$O$33:$O$534,'2.Logbook'!$K$33:$K$534,\"Banc Objet\",'2.Logbook'!$AL$33:$AL$534,{\"DCP dérivant\";\"DCP ancré\"}  )","v":43},{"$f":"IF($C$37=0,\"\",C19/$C$37)","v":8.4148727984344418E-2}]
[null,"SKJ",{"$f":"SUMIFS('2.Logbook'!$Q$33:Q$534,'2.Logbook'!$K$33:$K$534,\"Banc Objet\",'2.Logbook'!$AL$33:$AL$534,{\"DCP dérivant\";\"DCP ancré\"}  )","v":160},{"$f":"IF($C$38=0,\"\",C20/$C$38)","v":1}]
[null,"BE+10",{"$f":"SUMIFS('2.Logbook'!$S$33:$S$534,'2.Logbook'!$K$33:$K$534,\"Banc Objet\",'2.Logbook'!$AL$33:$AL$534,{\"DCP dérivant\";\"DCP ancré\"}  )","v":0},{"$f":"IF($C$39=0,\"\",C21/$C$39)","v":""}]
[null,"BE-10",{"$f":"SUMIFS('2.Logbook'!$U$33:$U$534,'2.Logbook'!$K$33:$K$534,\"Banc Objet\",'2.Logbook'!$AL$33:$AL$534,{\"DCP dérivant\";\"DCP ancré\"}  )","v":25},{"$f":"IF($C$40=0,\"\",C22/$C$40)","v":1}]
[null,"Germon",{"$f":"SUMIFS('2.Logbook'!$W$33:$W$534,'2.Logbook'!$K$33:$K$534,\"Banc Objet\",'2.Logbook'!$AL$33:$AL$534,{\"DCP dérivant\";\"DCP ancré\"}  )","v":0},{"$f":"IF($C$41=0,\"\",C23/$C$41)","v":""}]
[]
[]
[null,null,"Sur épave (en t)"]
[null,"YF+10",{"$f":"SUMIFS('2.Logbook'!$M$33:$M$534,'2.Logbook'!$K$33:$K$534,\"Banc Objet\",'2.Logbook'!$AL$33:$AL$534, \"<>\" & {\"DCP dérivant\";\"DCP ancré\"}  )","v":0},{"$f":"IF($C$36=0,\"\",C27/$C$36)","v":0}]
[null,"YF-10",{"$f":"SUMIFS('2.Logbook'!$O$33:$O$534,'2.Logbook'!$K$33:$K$534,\"Banc Objet\",'2.Logbook'!$AL$33:$AL$534,\"<>\" &{\"DCP dérivant\";\"DCP ancré\"}  )","v":0},{"$f":"IF($C$37=0,\"\",C28/$C$37)","v":0}]
[null,"SKJ",{"$f":"SUMIFS('2.Logbook'!$Q$33:Q$534,'2.Logbook'!$K$33:$K$534,\"Banc Objet\",'2.Logbook'!$AL$33:$AL$534,\"<>\" &{\"DCP dérivant\";\"DCP ancré\"}  )","v":0},{"$f":"IF($C$38=0,\"\",C29/$C$38)","v":0}]
[null,"BE+10",{"$f":"SUMIFS('2.Logbook'!$S$33:$S$534,'2.Logbook'!$K$33:$K$534,\"Banc Objet\",'2.Logbook'!$AL$33:$AL$534,\"<>\" &{\"DCP dérivant\";\"DCP ancré\"}  )","v":0},{"$f":"IF($C$39=0,\"\",C30/$C$39)","v":""}]
[null,"BE-10",{"$f":"SUMIFS('2.Logbook'!$U$33:$U$534,'2.Logbook'!$K$33:$K$534,\"Banc Objet\",'2.Logbook'!$AL$33:$AL$534,\"<>\" &{\"DCP dérivant\";\"DCP ancré\"}  )","v":0},{"$f":"IF($C$40=0,\"\",C31/$C$40)","v":0}]
[null,"Germon",{"$f":"SUMIFS('2.Logbook'!$W$33:$W$534,'2.Logbook'!$K$33:$K$534,\"Banc Objet\",'2.Logbook'!$AL$33:$AL$534,\"<>\" &{\"DCP dérivant\";\"DCP ancré\"}  )","v":0},{"$f":"IF($C$41=0,\"\",C32/$C$41)","v":""}]
[]
[]
[null,null,"Totaux   (en T)"]
[null,"YF+10",{"$f":"SUM('2.Logbook'!$O$33:$O$534)","v":43}]
[null,"YF-10",{"$f":"SUM('2.Logbook'!$M$33:$M$534)","v":511}]
[null,"SKJ",{"$f":"SUM('2.Logbook'!$Q$33:$Q$534)","v":160}]
[null,"BE+10",{"$f":"SUM('2.Logbook'!$S$33:$S$534)","v":0}]
[null,"BE-10",{"$f":"SUM('2.Logbook'!$U$33:$U$534)","v":25}]
[null,"Germon",{"$f":"SUM('2.Logbook'!$W$33:$W$534)","v":0}]
[null,"Total",{"$f":"SUM(C36:C41)","v":739}]

{"sheet":"5.Définitions","index":4,"n_rows":154,"n_cols":2,"rows_kept":154,"cut":false,"hidden":false,"merged":[]}
["TAILLE DES CAPTURES"]
["ALBACORE, PATUDO, GERMON","Description"]
["< 1,8 kg","Poisson de moins de 1,8 kg"]
["1,8 - 3,4 kg","Poisson de 1,8 à 3,4 kg"]
["3,4 - 10 kg","Poisson de 3,4 à 10 kg"]
["10 - 20 kg","Poisson de 10 à 20 kg"]
["20 - 40 kg","Poisson de 20 à 40 kg"]
["40 - 60 kg","Poisson de 40 à 60 kg"]
["> 60 kg","Poisson de plus de 60 kg"]
[]
["LISTAO","Description"]
["< 1,8 kg","Poisson de moins de 1,8 kg"]
["1,8 - 3,4 kg","Poisson de 1,8 à 3,4 kg"]
["> 3,4 kg","Poisson de plus de 3,4 kg"]
[]
["OBJETS FLOTTANTS"]
["Types d'activités sur les objets flottants","Description"]
["Mise à l'eau","Déploiement d'un nouveau DCP"]
["Visite sans pêche","Visite d'un DCP ou d'une épave déjà en mer et qui n'est pas suivie d'une calée"]
["Visite avec pêche","Visite d'un DCP ou d'une épave déjà en mer suivie d'une calée"]
["Renforcement","Déploiement d'un DCP sur un autre DCP ou sur une épave pour améliorer sa flottabilité "]
["Retrait","Récupération en mer d'un DCP ou d'une épave"]
["Perte","Action involontaire. Se produit par exemple si un autre bateau récupère l'objet, si la bouée arrête d'émettre ou si l'objet coule."]
["Fin d'utilisation","Action volontaire. Se produit si le bateau, son baliseur ou l'armement désactive la bouée. L'abandon d'un DCP en mer sans balise est interdit."]
[]
["Types d'objets flottants","Description / Exemple"]
["DCP ancré","Objet construit et ancré par des pêcheurs pour attirer du poisson"]
["DCP dérivant","Objet dérivant construit et déployé par des pêcheurs pour attirer du poisson"]
["Epave artificielle liée à la pêche","Par exemple, un morceau de filet, une aussière, une épave de bateau, un baliseur"]
["Epave artificielle liée à d'autres activités humaines","Par exemple, un bidon, un touret de câble, une bouée océanique"]
["Epave naturelle d'origine animale","Par exemple, une charogne de baleine ou de requin baleine"]
["Epave naturelle d'origine végétale","Par exemple, un tas de paille, un amas d'algues ou des branches d'arbre"]
[]
["Types de DCP","Description"]
["DCP français émergé bambou","Radeau type français, avec un cadre 100% bambou émergé"]
["DCP français émergé métal","Radeau type français, avec un cadre 100% métal émergé"]
["DCP français émergé bambou-métal","Radeau type français, avec un cadre mixte bambou métal"]
["DCP français furtif","Radeau type français, sous la surface"]
["DCP français cage","Radeau-cage type français, sous la surface"]
["DCP espagnol émergé bambou","Radeau type espagnol, avec un cadre 100% bambou émergé"]
["DCP espagnol émergé métal","Radeau type espagnol, avec un cadre 100% métal émergé"]
["DCP espagnol émergé bambou-métal","Radeau type espagnol, avec un cadre mixte bambou métal"]
["DCP espagnol émergé plastique","Radeau type espagnol, avec un cadre 100% plastique émergé"]
["DCP espagnol furtif","Radeau type espagnol, avec un cadre mixte bambou métal"]
["DCP espagnol cage","Radeau type espagnol, sous la surface"]
["DCP coréen","Radeau type coréen"]
["Autre DCP dérivant","A décrire dans les commentaires"]
["Autre objet","A décrire dans les commentaires"]
[]
["Risque de maillage","Description"]
["Pas de mailles","Présence de mailles en surface (risque pour les tortues) ou sous la surface (risque pour les requins). L'utilisation de DCP avec mailles est interdite par la CTOI."]
["< 6, 5 cm","Présence de mailles de 6,5 cm ou moins. Faible risque de maillage."]
["> 6,5 cm","Présence de mailles de plus de 6,5 cm. Fort risque de maillage."]
["Mailles de taille inconnue","La taille des mailles n'a pas pu être estimée"]
["Non observable","La présence de mailles n'a pas pu être observée"]
[]
[]
[]
["BOUEES"]
["Types d'activités sur les bouées","Description"]
["Mise à l'eau","Déploiement d'un DCP neuf avec une bouée / déploiement d'une bouée sur un objet dérivant sans bouée"]
["Visite","Visite d'un DCP ou d'une épave équipée d'une bouée  / visite d'une bouée dérivant seule"]
["Transfert","Changement de bouée"]
["Retrait","Récupération en mer d'une bouée.  L'abandon d'un DCP en mer sans balise est interdit."]
["Perte","Action involontaire. Se produit par exemple si un autre bateau récupère l'objet et éteint la bouée, si la bouée arrête d'émettre ou si la bouée coule."]
["Fin d'utilisation","Action volontaire. Se produit si le bateau, son baliseur ou l'armement désactive la bouée. L'abandon d'un DCP en mer sans balise est interdit."]
[]
["Marque de la bouée","Description"]
["Marine Instruments"]
["Satlink"]
["Thalos"]
["Autre (précisez)","Préciser la marque dans les commentaires si la bouée n'appartient à aucune des 3 marques précédentes"]
[]
["Types de bouées","Description"]
["M3i","Marine Instrument M3i"]
["M3i+","Marine Instrument M3i+"]
["M4i","Marine Instrument M4i"]
["Marine Instruments modèle inconnu","Bouée Marine Instruments dont le modèle n'a pas été observé ou n'est pas présent dans la liste précédente"]
["Ortbit","Thalos Ortbit"]
["Thalos modèle inconnu","Bouée Thalos dont le modèle n'a pas été observé ou n'est pas présent dans la liste précédente"]
["SLX+","Satlink SLX+"]
["ISD+","Satlink ISD+"]
["Autre Satlink","Autre modèle Satlink (non utilisé par la flotte française)"]
["Satlink modèle inconnu","Bouée Satlink dont le modèle n'a pas été observé"]
["Marque et modèle inconnus","Bouée pour laquelle ni la marque, ni le modèle n'ont pu être observés"]
["Pas de bouée","Objet dérivant sans bouée"]
[]
["Raison de l'entrée en stock","Description"]
["Livrée à bord (neuve)","Livraison d'une bouée neuve"]
["Stock de la marée précédente","Bouée non déployée pendant la marée précédente"]
["Récupérée en mer","Bouée récupérée sur un objet en mer. Seules les bouées appartenant au bateau doivent être déclarées."]
["Récupérée au port","Bouée récupérée au port (\"cimetière de bouées\"). Seules les bouées appartenant au bateau doivent être déclarées."]
[]
["Raison de la sortie du stock","Description"]
["Déployée","Bouée déployée sur un objet."]
["Déchargée au port","Bouée déchargée au retour au port. La bouée est rendue à l'armement parce qu'elle ne fonctionne plus par exemple."]
[]
["Liste des ZEE"]
["Eaux internationales"]
["Afrique du Sud"]
["Angola"]
["Annobon"]
["Bassas da India"]
["Bénin"]
["Cameroun"]
["Canaries"]
["Cap Vert"]
["Chagos"]
["Comores"]
["Côte d'Ivoire"]
["Espagne"]
["France métropolitaine"]
["Gabon"]
["Gambie"]
["Ghana"]
["Glorieuses"]
["Guinée Bissau"]
["Guinée Conakry"]
["Guinée Equatoriale"]
["Ile Maurice"]
["Iles Eparses"]
["Inde"]
["Indonésie"]
["Juan de Nova"]
["Kenya"]
["La Réunion"]
["Libéria"]
["Madagascar"]
["Madère"]
["Maldives"]
["Maroc"]
["Maurice"]
["Mauritanie"]
["Mayotte"]
["Mozambique"]
["Namibie"]
["Nigéria"]
["Oman"]
["Pakistan"]
["Portugal"]
["République Démocratique du Congo"]
["Sahara Occidental"]
["Sao Tome e Principe"]
["Sénégal"]
["Seychelles"]
["Sierra Leone"]
["Somalie"]
["Sri Lanka"]
["Tanzanie"]
["Togo"]
["Tromelin"]
["Vietnam"]
["Yémen"]
["Autre (précisez)"]